Cogmind - Beta 13 @@@ ROGUE MODE // 2024.05.03 @ 16:35:54 Player: Pluto Result: Destroyed by G-34 Mercenary with Small Laser Performance ------------- Evolutions (0) 0 Regions Visited (1) 200 Robots Destroyed (12) 60 Value Destroyed (205) 205 Prototype IDs (0) 0 Alien Tech Used (0) 0 Bonus (0) 0 TOTAL SCORE: 465 Bonus ------- None Cogmind --------- Core Integrity 0/250 Matter 285/300 Energy 78/100 System Corruption 0% Temperature Cool (6) Movement Rolling (80) Location -10/Materials Parts ------- > --- POWER (1) -------- (None) > --- PROPULSION (2) --- Wheel Wheel > --- UTILITY (2) ------ Small Storage Unit > --- WEAPON (2) ------- Small Laser > --- INVENTORY (8) ---- Wheel Wheel Improved Heat Sink Improved Terrain Scanner Peak State ------------ > --- POWER ------------ Light Ion Engine > --- PROPULSION ------- Wheel Compact Wheel > --- UTILITY ---------- Small Storage Unit Improved Terrain Scanner > --- WEAPON ----------- Medium Laser Medium Laser > --- INVENTORY -------- Light Ion Engine Light Treads Light Treads Wheel Small Laser [Rating: 9] Favorites ----------- Power Light Ion Engine Engine Light Ion Engine Propulsion Wheel Wheel Wheel Utility Small Storage Unit Device Seismic Detector Storage Small Storage Unit Weapon Medium Laser Energy Gun Medium Laser Build | -11 -10 ------- Run | Yrd Mat Slots Evolved . | . . Power . | . . Propulsion . | . . Utility . | . . Weapon . | . . Parts Attached 14 | 8 6 Power 3 | 1 2 Engine 3 | 1 2 Core . | . . Reactor . | . . Propulsion 4 | 2 2 Treads . | . . Leg . | . . Wheel 4 | 2 2 Hover . | . . Flight . | . . Utility 4 | 3 1 Device 3 | 2 1 Storage 1 | 1 . Processor . | . . Hackware . | . . Protection . | . . Artifact . | . . Weapon 3 | 2 1 Energy Gun 3 | 2 1 Energy Cannon . | . . Ballistic Gun . | . . Ballistic Cannon . | . . Launcher . | . . Special Weapon . | . . Impact Weapon . | . . Slashing Weapon . | . . Piercing Weapon . | . . Special Melee Weapon . | . . Unidentified Prototypes . | . . Parts Lost 8 | . 8 Power 2 | . 2 Propulsion 2 | . 2 Utility 2 | . 2 Weapon 2 | . 2 Highest Loss Streak 6 | . 6 To Critical Strikes . | . . Average Slot Usage (%) 85 | . 85 Engine 12 | . 12 Wheel 21 | . 21 Device 13 | . 13 Storage 14 | . 14 Energy Gun 22 | . 22 Naked Turns . | . . Heaviest Build 15 | 13 15 Greatest Support 26 | 26 26 Greatest Overweight (x) 3 | . 3 Average Overweight (x) . | . . Largest Inventory Capacity 8 | 8 8 Average Capacity 7 | 7 8 Most Carried 8 | 8 8 Average Carried 6 | 4 7 Final Capacity 8 | 8 8 Final Carried 8 | 8 4 Class Distribution -------------------- 100% | Mutant Dominant Class ---------------- Mutant | -10/Materials Resources | -11 -10 ----------- Run | Yrd Mat Matter Collected 402 | 280 122 Remotely . | . . Salvage Created 397 | 241 156 Parts 24 | 20 4 Haulers Intercepted . | . . Recyclers Shooed . | . . Parts Field Recycled . | . . Retrieved Matter . | . . Parts Self-Destructed . | . . Prevented . | . . Kills | -11 -10 ------- Run | Yrd Mat Combat Hostiles Destroyed 4 | . 4 Guns 3 | . 3 Classes Destroyed 4 | 3 1 Worker 2 | 2 . Tunneler 5 | 5 . Recycler 1 | 1 . Grunt 4 | . 4 Best Kill Streak 5 | 5 2 Combat Bots Only 2 | . 2 Max Kills in Single Turn 2 | 2 1 Gunslinging . | . . Exploded . | . . Melee . | . . Uniques/NPCs Destroyed . | . . Combat | -11 -10 -------- Run | Yrd Mat Hostile Shots Fired 61 | . 61 Missed 9 | . 9 Damage Taken 815 | . 815 Core 260 | . 260 Absorbed by Shields . | . . Core Remaining (%) 100 | 100 . Volleys Fired 45 | 10 35 Largest 2 | 2 2 Hottest 100 | 100 100 Shots Fired 72 | 20 52 Gun 72 | 20 52 Cannon . | . . Launcher . | . . Special . | . . Kinetic . | . . Thermal 72 | 20 52 Explosive . | . . Electromagnetic . | . . Robot Hit Streak 16 | 5 16 Robot Miss Streak 4 | 1 4 Penetration Max . | . . Secondary Targets . | . . Shots Hit Robots 49 | 13 36 Core Hits 20 | 9 11 Critical Kills . | . . Critical Parts Destroyed . | . . Critical Strikes 4 | . 4 Burn 4 | . 4 Melee Attacks . | . . Impact . | . . Slashing . | . . Piercing . | . . Sneak Attacks . | . . Combat Hostiles . | . . Follow-up Attacks . | . . Damage Inflicted 637 | 197 440 Guns 637 | 197 440 Cannons . | . . Explosions . | . . Melee . | . . Ramming . | . . Kinetic . | . . Thermal 637 | 197 440 Explosive . | . . Electromagnetic . | . . Impact . | . . Slashing . | . . Piercing . | . . Highest Corruption . | . . Average Corruption . | . . Corruption Purged . | . . Corruption Blocked . | . . Overload Shots . | . . Overflow Damage . | . . Projectiles . | . . Explosions . | . . Melee . | . . Knockbacks . | . . Impact . | . . Kinetic . | . . Secondary . | . . Self-Inflicted Damage . | . . Shots . | . . Rammed . | . . Targets Rammed . | . . Kicked . | . . Crushed . | . . Highest Temperature 443 | 117 443 Average Temperature 137 | 42 173 Received Heat Transfer 429 | . 429 Effects 4 | . 4 Shutdowns 1 | . 1 Interference 1 | . 1 Matter Decay 2 | . 2 Siege Activations . | . . Robots Corrupted . | . . Combat Hostiles . | . . Parts Fried . | . . Impact Corruptions . | . . Robots Melted 1 | . 1 Combat Hostiles 1 | . 1 Parts Melted 4 | . 4 Heat Transferred 2100 | 592 1508 Parts Sabotaged . | . . Parts Stolen . | . . Parts Stripped . | . . Power Chain Reactions . | . . Alert | -11 -10 ------- Run | Yrd Mat Peak Influence 152 | 40 152 Initial 26 | . 26 Average 72 | 15 99 Maximum Alert Level . | . . Low Security (%) 100 | 100 100 Level 1 . | . . Level 2 . | . . Level 3 . | . . Level 4 . | . . Level 5 . | . . High Security . | . . Max Security . | . . Squads Dispatched . | . . Investigation . | . . Extermination . | . . Reinforcement . | . . Assault . | . . Garrison . | . . Intercept . | . . Searches Triggered . | . . Construction Impeded . | . . Haulers Reinforced . | . . Active Scanning Responses . | . . Cargo Convoy Interrupts . | . . Stealth | -11 -10 --------- Run | Yrd Mat Distress Signals 2 | . 2 Communications Jammed . | . . Distress Signals . | . . Times Spotted 10 | . 10 Peak Tracking Total 3 | . 3 Tactical Retreats 1 | . 1 Traps | -11 -10 ------- Run | Yrd Mat Traps Triggered . | . . Indirectly . | . . Trap Hack Attempts . | . . Triggered . | . . Disarmed . | . . Reprogrammed . | . . Reused . | . . Traps Extracted . | . . Installed . | . . Triggered . | . . Machines | -11 -10 ---------- Run | Yrd Mat Machines Disabled . | . . Max in Single Turn . | . . Machines Repaired . | . . Machines Dismantled . | . . Machines Sabotaged . | . . Overloaded Fab Kills . | . . Hacking | -11 -10 --------- Run | Yrd Mat Machines Accessed 2 | . 2 Terminals 2 | . 2 Fabricators . | . . Repair Stations . | . . Recycling Units . | . . Scanalyzers . | . . Garrison Access . | . . Total Hacks 4 | . 4 Successful 3 | . 3 Failed 1 | . 1 Catastrophic . | . . Database Lockouts . | . . Manual 3 | . 3 Terminals 4 | . 4 Fabricators . | . . Repair Stations . | . . Recycling Units . | . . Scanalyzers . | . . Garrison Access . | . . Terminal Hacks 2 | . 2 Terminal Index 1 | . 1 Locate Traps 1 | . 1 Fabricator Hacks . | . . Repair Station Hacks . | . . Recycling Unit Hacks . | . . Scanalyzer . | . . Garrison Access Hacks . | . . Unauthorized Hacks 1 | . 1 Terminals 1 | . 1 Botnet 1 | . 1 Fabricators . | . . Repair Stations . | . . Recycling Units . | . . Scanalyzers . | . . Garrison Access . | . . Data Cores Recovered . | . . Used . | . . Hacking Detections 2 | . 2 Full Trace Events . | . . Feedback Events . | . . Feedback Blocked . | . . Robot Schematics Acquired . | . . Robots Built . | . . Authchips . | . . Time . | . . Total Robot Build Rating . | . . Part Schematics Acquired . | . . Parts Built . | . . Authchips . | . . Time . | . . Total Part Build Rating . | . . Parts Repaired . | . . Time . | . . Parts Recycled . | . . Recycled Matter . | . . Retrieved Matter . | . . Retrieved Components . | . . Parts Scanalyzed . | . . Part Schematics Acquired . | . . Parts Damaged . | . . Bothacking | -11 -10 ------------ Run | Yrd Mat Used RIF Installer . | . . Robots Hacked . | . . Non-combat . | . . Combat . | . . Robot Hacks Applied . | . . Relay Couplers Released . | . . Fabnet Peak Effective % . | . . Robots Rewired . | . . Allies Hacked . | . . Hacks Repelled . | . . Allies | -11 -10 -------- Run | Yrd Mat Total Allies . | . . Largest Group . | . . Highest-Rated Group . | . . Highest-Rated Ally . | . . Total Orders . | . . Ally Attacks . | . . Total Damage . | . . Kills . | . . Allies Corrupted . | . . Allies Melted . | . . Intel | -11 -10 ------- Run | Yrd Mat Robot Analysis Total . | . . Derelict Logs Recovered . | . . Drone Launches . | . . Drone Recoveries . | . . Exploration | -11 -10 ------------- Run | Yrd Mat Turns Passed 437 | 138 299 Spaces Moved 223 | 94 129 Core 27 | 2 25 Treads . | . . Legs . | . . Wheels 196 | 92 104 Hover . | . . Flight . | . . Fastest Speed 50 | 50 90 Average Speed 100 | 87 110 Slowest Speed 200 | 90 200 Overloaded Moves . | . . Propulsion Burnouts . | . . Robots Hopped . | . . Cave-ins Triggered . | . . Exploration Rate (%) 13 | 5 22 Regions Visited 1 Branch Regions . Pre-discovered Areas . | . . Known Exits Taken . | . . Unknown Exits Taken 1 | 1 . Scrap Searched . | . . Spaces Dug . | . . Terrain Destroyed . | . . Melee . | . . Projectile . | . . AOE . | . . Terrain Rammed . | . . Walls Destroyed . | . . Machines Disabled . | . . Actions | -11 -10 --------- Run | Yrd Mat Total 361 | 126 235 Wait 66 | 3 63 Move 222 | 93 129 Hop . | . . Pick Up 11 | 10 1 Fast Attach 7 | 7 . Attach 5 | . 5 Detach . | . . Swap 2 | 1 1 Drop 3 | 2 1 Fire 45 | 10 35 Melee . | . . Ram . | . . Kick . | . . Crush . | . . Escape Stasis . | . . Rewire . | . . Trap . | . . Miscellaneous . | . . Route ------- -11/Scrapyard -10/Materials History --------- Turn | Location | Event 10 | -11/Scrapyard | Discovered new exit (range 15) 139 | -11/Scrapyard | Entered Materials 316 | -10/Materials | Build established: Mutant 354 | -10/Materials | Core integrity fell below 50% 394 | -10/Materials | Lost 6 parts (1p2n1u2w) 426 | -10/Materials | Core integrity fell below 20% 438 | -10/Materials | Destroyed by G-34 Mercenary with Small Laser Last Messages --------------- 00349_ Com. Wheel destroyed. 00355_ Ion Engine destroyed. 00363_ K-01 Serf cleans the Fusion Modulator. 00363_ Wheel destroyed. 00367_ Critical hit (Burn: +37). 00368_ G-47 Trooper destroyed. 00369_ K-01 Serf collects debris. 00371_ Acquired 42 matter. 00373_ K-01 Serf collects debris. 00375_ Acquired Imp. Heat Sink. 00377_ K-01 Serf collects debris. 00382_ W-16 Scout sends out distress signal. 00393_ R-06 Scavenger collects Aluminum Leg. 00399_ K-01 Serf collects debris. 00421_ Acquired 35 matter. 00425_ Fusion Modulator explodes. 00425_ G-34 Mercenary destroyed. 00425_ Lgt. Ion Engine destroyed. 00432_ Seismic Detector destroyed. 00434_ K-01 Serf collects debris. Map ----- +----------------------------------------------------+ | ?????????????? #??????? | | ???????????????# #??????? | | ???????????????# !!! ???????? | | ???????????????# !!! ######### | | ???????????????# !!! # # | | ???????????##### # T # | | ????????? # # | | ????????? + # | | ?????????? # # | | ?????????? ### ###+#### # """ # | | ???????????????? ????#r # """ # | | ???????????????# ?????# # """ # | | ?????????????????? ???# + # | | ??????????????????? ??# # # | | ??????????????????? ??# # # | | ???????????????????? ?# k##+###### | | ???????????????????? ## #????? | | ??????????????????###; = ;????? | | ??????????????????# % ;##???? | | ???????????????####; m[ ;;##??? | | ???????????????? ; #??? | | ?????????????????#; g #??? | | ?????????????????#; #??? | | ?????????????????#; #??? | | ?????????????????#; = #??? | | ??????????????????#;; @ ;;##??? | | ??????????????????# % ###???? | | ????+############## #?????? | | ???? # #?????? | | ??? # #?????? | | ??????? ^ # #?????? | | ??????????????# + ! #?????? | | ??????????????# # #?????? | | ??????????????# # #?????? | | ??????????????# ############????? | | ??????????????# #????? | | ??????????????# #????? | | ??????????????# #????? | | ??????????????###########+#####???? | | ????????????????????# #???? | | ????????????????????# #???? | | ????????????????????# "T" #???? | | ????????????????????# """ #???? | | ????????????????????###########???? | | | | | | | | | | | | | +----------------------------------------------------+ Best States ------------- Heat Dissipation 25 Energy Generation 10 Energy Capacity 250 Matter Stores 300 Matter Capacity 300 Sight Range 16 Terrain Scan Range 16 Terrain Scan Density 10 Evasion (%) 44 Item Schematics ----------------- None Robot Schematics ------------------ None Fabricated ------------ Nothing Alien Tech Used ----------------- None Achievements -------------- None Challenges ------------ None Game ------ Seed ChipPlatingBoregun Manual? 0 Play Time 00:14:21 Cumulative 17.7 hours Start 2024.05.03 @ 16:25:07 End 2024.05.03 @ 16:35:54 Sessions 2 Manual Loads 0 Difficulty Rogue Special Mode None Game No. 18 Rogue 18 Adventurer 0 Explorer 0 Win Type - Total 0 Types 0/0/0/0/0/0/0/0/0 Lore% 6 Gallery% 19 Achievement% 18 Wizard Run 0 Options --------- Layout 2 ASCII 0 Keyboard 1 Movement Numpad Keybinds 0 Fullscreen 1 Font 32/SmallcapsGlow Map View 50x44 Zoom Use 0% Tactical HUD 1 Map Filters NONE Filters NONE Steam 1 RUN: 56abdb7d-75e7-44f7-abb6-7adec01e2909